bitfinex/quotes_ETHUSD_20250403
["timestamp","ask_amount","ask_price","bid_price","bid_amount"]
[1743647294494,0.7599,1823.8,1823.4,5.435]
[1743647294688,0.1,1823.9,1823.8,4.38644]
[1743647296541,0.1,1823.9,1823.7,4.38661]
[1743647297502,0.1,1823.9,1823.7,8.77322]
[1743647297839,0.1,1823.9,1823.7,4.38661]
[1743647298082,0.1,1823.9,1823.7,8.77322]
[1743647298498,0.1,1823.9,1823.8,4.38644]
[1743647301308,0.1,1823.9,1823.8,4.44126254]
[1743647301927,0.1,1823.9,1823.8,4.38644]
[1743647302317,0.1,1823.9,1823.8,4.44126252]
[1743647302518,0.1,1823.9,1823.8,4.38644]
[1743647302829,0.1,1823.9,1823.8,9.81944]
[1743647308232,0.1,1823.9,1823.8,4.38644]
[1743647308424,0.1,1823.9,1823.8,9.81844]
[1743647309939,0.1,1823.9,1823.8,10.46564]
[1743647310116,0.1,1823.9,1823.8,10.52046571]
[1743647310552,0.1,1823.9,1823.8,10.46564]
[1743647310772,0.1,1823.9,1823.8,10.52045923]
[1743647311334,0.1,1823.9,1823.8,10.46564]
[1743647312673,0.1,1823.9,1823.8,10.52045598]
[1743647312844,0.1,1823.9,1823.8,10.46564]
[1743647313043,0.1,1823.9,1823.8,13.87902679]
[1743647318603,0.1,1823.9,1823.8,10.87902679]
[1743647319715,0.1,1823.9,1823.8,10.46564]
[1743647321024,0.1,1823.9,1823.8,5.03364]
[1743647321198,0.1,1823.9,1823.8,9.81644]
[1743647330520,0.1,1823.9,1823.8,4.38644]
[1743647340457,0.1,1823.9,1823.8,4.44126753]
[1743647340969,0.1,1823.9,1823.8,4.38644]
[1743647344129,0.1,1823.9,1823.8,4.44126753]
[1743647345857,0.1,1823.9,1823.8,5.03364]
[1743647348365,0.1,1823.9,1823.8,5.4445009]
[1743647348877,0.1,1823.9,1823.8,8.4445009]
[1743647349379,0.1,1823.9,1823.8,8.49930947]
[1743647349528,0.1,1823.9,1823.8,8.4445009]
[1743647349884,6.12,1824.7,1824.5,4.38476]
[1743647350022,0.7893,1824.8,1824.5,4.38476]
[1743647351164,0.7893,1824.8,1824.5,8.76952]
[1743647351486,0.7893,1824.8,1824.5,4.38476]
[1743647352070,0.7893,1824.8,1824.6,4.38449]
[1743647353573,0.7893,1824.8,1824.5,4.38476]
[1743647354072,0.7893,1824.8,1824.6,4.38447]
[1743647354276,0.7893,1824.8,1824.7,4.38428]
[1743647354457,0.1,1824.9,1824.7,4.38428]
[1743647354676,0.8829,1824.9,1824.7,8.76836]
[1743647356594,0.8829,1824.9,1824.8,4.38404]
[1743647357396,0.8829,1824.9,1824.7,4.38408]
[1743647361994,0.8829,1824.9,1824.7,8.76826]
[1743647362190,0.8829,1824.9,1824.5,4.38452]
[1743647362395,4.38411,1824.8,1824.4,4.38497]
[1743647362687,0.8115,1824.7,1824.3,4.38507]
[1743647363191,11.31596,1824.7,1824.1,4.38549]
[1743647363373,4.38488,1824.5,1824.1,4.38549]
[1743647363569,4.385,1824.4,1824.0,9.80893]
[1743647366690,8.77022,1824.4,1824.0,5.423]
[1743647366891,5.262022,1824.4,1824.0,9.80893]
[1743647367069,4.385,1824.4,1824.0,9.80893]
[1743647368096,8.77022,1824.4,1824.0,9.80893]
[1743647368394,8.77022,1824.4,1823.9,4.38605]
[1743647368798,4.38564,1824.2,1823.7,5.03366]
[1743647369094,8.77134,1824.2,1823.7,5.03366]
[1743647369270,9.648474,1824.2,1823.7,5.03366]
[1743647369473,9.648474,1824.2,1823.7,9.42024]
[1743647369671,9.648474,1824.2,1823.7,5.03366]
[1743647370004,4.38576,1824.1,1823.7,5.03366]
[1743647372069,4.38576,1824.1,1823.7,9.42024]
[1743647372265,9.12,1824.4,1824.1,4.38568]
[1743647372568,9.12,1824.4,1823.8,0.05482838]
[1743647372569,10.50503,1824.4,1823.9,4.38601]
[1743647372758,10.50503,1824.4,1824.0,4.38596]
[1743647373097,6.12,1824.4,1824.0,8.77181]
[1743647373261,6.12,1824.4,1824.0,4.38585]
[1743647373463,8.918985,1824.4,1824.0,4.38585]
[1743647373882,13.304005,1824.4,1824.0,4.38585]
[1743647375475,13.304005,1824.4,1823.9,4.38609]
[1743647376566,13.304005,1824.4,1823.9,4.44091176]
[1743647376967,13.304005,1824.4,1823.9,4.38609]
[1743647377404,13.304005,1824.4,1823.9,4.44091176]
[1743647377566,13.304005,1824.4,1823.9,4.38609]
[1743647377765,6.12,1824.4,1824.0,4.38589]
[1743647377966,16.22,1824.5,1824.1,4.38562]
[1743647378499,16.22,1824.5,1824.2,4.38539]
[1743647378701,6.12,1824.5,1824.3,4.3851]
[1743647380565,10.50493,1824.5,1824.0,9.80779]
[1743647380906,14.8899,1824.5,1824.0,9.80779]
[1743647381100,4.385,1824.4,1824.0,9.80779]
[1743647382789,4.385,1824.4,1824.0,9.80791]
[1743647385825,8.77021,1824.4,1824.0,5.422]
[1743647389708,4.385,1824.4,1824.0,5.422]
[1743647390903,14.89022,1824.4,1824.0,5.422]
[1743647391224,11.49876094,1824.4,1824.0,5.422]
[1743647391720,15.88398094,1824.4,1824.0,5.422]
[1743647392109,11.49876094,1824.4,1824.0,5.422]
[1743647392839,11.49876094,1824.4,1823.9,8.77212]
[1743647393045,15.88398094,1824.4,1823.9,4.38602]
[1743647395056,4.58839809,1824.3,1823.7,4.38668]
[1743647395342,4.58839809,1824.3,1823.6,4.38672]
[1743647395343,4.38606,1824.0,1823.6,4.38672]
[1743647396003,0.8226,1823.9,1823.6,4.38672]
[1743647396404,4.38606,1824.0,1823.3,4.38754]
[1743647396405,0.8226,1823.7,1823.3,4.38754]
[1743647396704,0.8226,1823.7,1823.5,4.38705]
[1743647397537,0.8226,1823.7,1823.4,4.38736]
[1743647397946,0.8226,1823.7,1823.5,4.38716]
[1743647398848,6.12,1823.8,1823.3,0.05483814]
[1743647399031,6.8712,1824.1,1823.7,4.38655]
[1743647399437,11.25698,1824.1,1823.7,4.38655]
[1743647399830,6.8712,1824.1,1823.8,4.38642]
[1743647400158,6.8712,1824.1,1823.7,4.38655]
[1743647400872,0.8184,1824.0,1823.7,4.38655]
[1743647402952,6.12,1824.1,1823.9,4.38608]
[1743647404062,6.12,1824.1,1823.9,4.38601]
[1743647404243,6.12,1824.1,1823.9,8.77211]
[1743647404448,6.12,1824.1,1823.9,4.38601]
[1743647405165,0.797,1823.7,1823.2,4.38775]
[1743647405464,0.797,1823.5,1823.1,4.38802]
[1743647405626,4.3879,1823.2,1822.9,1.02796064]
[1743647405834,4.38837,1823.0,1822.9,0.51387924]
[1743647406040,11.33037,1823.0,1822.9,0.51387924]
[1743647406240,6.12,1822.9,1822.1,0.1]
[1743647406567,0.822,1822.5,1822.1,0.1]
[1743647406865,0.822,1822.3,1822.1,0.1]
[1743647407433,6.345289,1822.3,1822.1,0.1]
[1743647407768,17.89229986,1822.2,1822.1,0.1]
[1743647408065,5.2132,1821.9,1821.3,10.60759406]
[1743647408270,0.822,1821.6,1821.3,6.21531406]
[1743647408471,4.39199,1821.5,1821.3,6.21531406]
[1743647408631,6.12,1821.4,1821.3,0.55]
[1743647408830,24.43422,1821.4,1821.3,0.55]
[1743647409070,27.99422986,1821.4,1821.3,0.55]
[1743647409256,8.1824,1821.2,1821.1,0.1]
[1743647409566,8.1824,1821.2,1821.1,4.49294]
[1743647409567,6.12,1821.2,1821.1,4.49294]
[1743647409733,6.12,1821.2,1821.1,0.1]
[1743647409938,6.12,1821.3,1821.1,0.1]
[1743647410243,14.5033,1821.2,1821.1,0.1]
[1743647410456,0.7913,1821.0,1820.3,10.05998406]
[1743647410667,6.12,1820.9,1820.3,14.45473406]
[1743647410968,0.7913,1820.7,1820.3,5.66531406]
[1743647411270,4.39512,1820.2,1820.1,0.1]
[1743647411467,4.39585,1819.9,1819.3,4.39715]
[1743647411667,4.45458594,1819.8,1819.2,4.39751]
[1743647411832,18.36578594,1819.7,1819.1,6.36030145]
[1743647412033,10.1,1819.6,1819.1,0.1]
[1743647412234,4.45458594,1819.5,1819.1,0.1]
[1743647412453,4.45458594,1819.4,1819.1,4.49765]
[1743647412682,13.9112,1819.7,1819.1,4.49765]
[1743647412683,10.9112,1819.7,1819.1,0.1]
[1743647412901,4.45458594,1819.9,1819.8,4.39608]
[1743647413971,14.55458594,1820.2,1820.1,4.39536]
[1743647414488,4.45458594,1820.5,1820.3,4.3948]
[1743647414776,4.45458594,1820.5,1820.4,4.39463]
[1743647415641,10.1,1820.8,1820.7,4.39391]
[1743647415973,5.28268594,1820.9,1820.8,4.39367]
[1743647416176,4.45458594,1820.9,1820.8,4.39367]
[1743647416534,4.45458594,1820.9,1820.5,4.39433]
[1743647416735,0.7551,1820.8,1820.4,4.39463]
[1743647416938,14.55458594,1820.7,1820.3,4.39468]
[1743647417148,11.55545859,1820.6,1820.3,8.78943]
[1743647417352,11.55545859,1820.6,1820.4,0.12593831]
[1743647417673,4.45458594,1820.7,1820.6,4.39415]
[1743647418074,4.45458594,1820.7,1820.6,4.52057058]
[1743647418412,4.45458594,1821.3,1821.2,4.3927]
[1743647418889,4.45458594,1821.3,1821.2,4.51363302]
[1743647419381,4.45458594,1821.3,1821.2,0.12093302]
[1743647419552,4.45458594,1821.3,1821.1,4.39289]
[1743647419759,5.91004453,1821.3,1821.2,0.11992466]
[1743647419949,9.69124453,1821.3,1820.9,4.39324]
[1743647420144,3.0,1821.2,1821.0,0.12081968]
[1743647420362,3.0,1821.0,1820.5,4.39417]
[1743647420564,0.7812,1820.9,1820.6,0.12266379]
[1743647420859,4.45458594,1820.8,1820.6,0.12266379]
[1743647421174,7.45458594,1820.7,1820.6,0.12266379]
[1743647421380,3.0,1820.6,1820.2,4.395]
[1743647421689,14.55458594,1820.5,1820.4,4.39463]
[1743647421992,14.55458594,1820.5,1820.4,4.50885068]
[1743647422194,16.01004453,1820.5,1820.4,0.11422068]
[1743647422394,16.01004453,1820.5,1820.1,4.39535]
[1743647422693,16.01004453,1820.5,1820.2,0.11554602]
[1743647422891,14.55458594,1820.4,1820.2,4.51049602]
[1743647423095,4.45458594,1820.4,1820.3,4.39487]
[1743647423452,4.45458594,1820.8,1820.7,4.39391]
[1743647423759,4.45458594,1820.8,1820.7,4.50957166]
[1743647425103,4.45458594,1820.8,1820.7,5.27127166]
[1743647425470,5.94e-06,1821.5,1821.4,4.39222]
[1743647425807,0.63151653,1821.5,1821.4,4.50325469]
[1743647426023,5.94e-06,1821.5,1821.4,4.50325469]
[1743647428614,5.94e-06,1821.5,1821.4,0.11103469]
[1743647428775,5.94e-06,1821.5,1821.2,4.39266]
[1743647428977,5.94e-06,1821.5,1821.3,0.10973129]
[1743647433510,0.7986,1821.4,1821.3,0.10973129]
[1743647435716,0.79860594,1821.4,1821.3,0.10973129]
[1743647437824,5.94e-06,1821.4,1821.3,4.50219129]
[1743647439417,10.1,1821.7,1821.6,4.39174]
[1743647439626,10.1,1821.7,1821.6,4.49998796]
[1743647440125,5.94e-06,1821.8,1821.7,4.3915]
[1743647440423,5.94e-06,1821.8,1821.7,4.49898525]
[1743647441600,5.94e-06,1821.8,1821.7,4.3915]
[1743647445733,0.1,1821.9,1821.8,4.39126]
[1743647446417,0.1,1821.9,1821.8,5.18566]
[1743647446728,10.10000594,1822.4,1822.3,4.39005]
[1743647447026,5.94e-06,1822.4,1822.3,4.39005]
[1743647448023,3.35353371,1822.8,1822.7,4.38909]
[1743647449843,3.35352777,1822.8,1822.7,4.38909]
[1743647450149,3.45352777,1822.9,1822.8,4.38885]
[1743647451313,7.77e-06,1822.9,1822.8,8.14615]
[1743647451843,7.77e-06,1822.9,1822.8,8.20099173]
[1743647452236,7.77e-06,1822.9,1822.8,5.5576051]
[1743647452449,7.77e-06,1822.9,1822.8,5.14615]
[1743647452827,7.77e-06,1822.9,1822.8,5.20099776]
[1743647453514,7.77e-06,1822.9,1822.8,5.14615]
[1743647454016,3.79120594,1823.6,1823.1,4.38791]
[1743647454616,8.17817594,1823.6,1823.1,4.38791]
[1743647456150,3.79120594,1823.6,1823.3,4.38752]
[1743647456314,3.0,1823.5,1823.3,4.38752]
[1743647456731,3.0,1823.5,1823.2,8.77545]
[1743647457623,3.0,1823.5,1823.2,4.38769]
[1743647457825,3.37912059,1823.5,1823.2,4.38769]
[1743647459525,3.37912653,1823.5,1823.2,4.38769]
[1743647460622,3.37912653,1823.5,1823.0,4.38814]
[1743647460826,4.38848,1823.0,1822.5,4.38947]
[1743647461027,0.8313,1822.8,1822.4,4.38981]
[1743647461238,0.8313,1822.8,1822.6,4.38926]
[1743647461566,3.00000594,1822.9,1822.6,4.38926]
[1743647463422,5.94e-06,1822.9,1822.6,4.38926]
[1743647467062,5.94e-06,1822.9,1822.5,4.38954]
[1743647467366,5.94e-06,1822.9,1821.9,7.39095]
[1743647467367,5.15044,1822.7,1822.1,4.39051]
[1743647467570,5.15044,1822.7,1821.9,6.2044]
[1743647467872,0.7612,1822.7,1822.4,4.3896]
[1743647468024,5.94e-06,1822.8,1822.5,4.3894]
[1743647468230,5.94e-06,1822.8,1822.6,4.38929]
[1743647468960,5.94e-06,1822.8,1822.5,4.3894]
[1743647469129,5.94e-06,1822.8,1822.4,4.38981]
[1743647469331,1.09264653,1822.8,1822.4,4.38981]
[1743647469529,5.48155653,1822.8,1822.4,4.38981]
[1743647469777,5.48155653,1822.8,1822.3,4.39005]
[1743647469939,4.38909,1822.7,1822.2,4.3901]
[1743647470140,5.18866,1822.6,1822.2,4.3901]
[1743647470362,0.7993,1822.6,1822.3,4.39004]
[1743647470562,0.79930594,1822.8,1822.5,4.38944]
[1743647471025,0.79930594,1822.8,1822.4,4.38971]
[1743647471222,5.18819594,1822.8,1822.4,4.38971]
[1743647474463,4.38889594,1822.8,1822.4,4.38971]
[1743647474629,5.19919,1822.7,1822.2,4.39015]
[1743647474829,5.63807959,1822.7,1822.2,8.7803]
[1743647475054,5.63807959,1822.7,1822.3,4.39001]
[1743647475328,1.24898959,1822.7,1822.3,4.39001]
[1743647475853,0.8101,1822.7,1822.4,4.38975]
[1743647476078,0.8101,1822.7,1822.4,8.77937]
[1743647476369,0.8101,1822.7,1822.4,4.38962]
[1743647479458,5.1992,1822.7,1822.3,4.39001]
[1743647479628,5.94e-06,1822.6,1822.2,4.39006]
[1743647479833,0.51992594,1822.6,1822.2,4.39006]
[1743647480176,4.90935594,1822.6,1822.2,4.39006]
[1743647482577,0.8311,1822.3,1821.7,5.21376]
[1743647482768,0.8311,1822.0,1821.6,4.39157]
[1743647483075,0.83110594,1822.0,1821.6,8.78321]
[1743647483861,5.22200594,1822.0,1821.5,4.39196]
[1743647484388,4.39102,1821.9,1821.5,4.39196]
[1743647485876,8.78227,1821.9,1821.4,4.39204]
[1743647486975,8.78227,1821.9,1821.4,4.51483853]
[1743647487177,0.8212,1821.5,1821.1,4.49277]
[1743647487378,5.94e-06,1821.4,1821.1,4.49277]
[1743647487578,5.94e-06,1821.4,1821.1,0.1]
[1743647487879,5.94e-06,1821.4,1821.1,4.49285]
[1743647488263,5.94e-06,1821.4,1821.1,8.88559]
[1743647488584,5.94e-06,1821.4,1821.2,4.39268]
[1743647488767,5.94e-06,1821.4,1821.1,4.49274]
[1743647489139,5.94e-06,1821.4,1821.1,0.1]
[1743647489342,0.7983,1821.3,1821.1,0.1]
[1743647489583,0.79830594,1821.3,1821.1,0.1]
[1743647489760,4.39270594,1821.2,1821.1,0.1]
[1743647489964,6.36105353,1821.2,1821.1,0.1]
[1743647490967,7.11735353,1821.2,1821.1,0.1]
[1743647491652,10.11735353,1821.2,1821.1,0.1]
[1743647491857,24.27430418,1821.2,1821.1,0.1]
[1743647492272,24.27430418,1821.2,1821.1,0.09999406]
[1743647492273,24.27429824,1821.2,1821.1,0.09999406]
[1743647493979,20.21734759,1821.2,1821.1,0.09999406]
[1743647494575,10.8563,1821.2,1821.1,0.09999406]
[1743647494963,10.1,1821.2,1821.1,0.09999406]
[1743647495160,10.1,1821.2,1821.1,4.49293406]
[1743647495360,10.1,1821.2,1821.1,0.09999406]
[1743647497198,6.12,1821.2,1821.1,0.09999406]
[1743647497869,6.12,1821.3,1821.1,0.09999406]
[1743647500994,4.3927,1821.2,1821.1,0.09999406]
[1743647501160,8.2207,1821.2,1821.1,0.09999406]
[1743647505110,6.12,1821.3,1821.1,0.09999406]
[1743647506704,10.5125,1821.3,1821.1,0.09999406]
[1743647506905,14.2945,1821.2,1821.1,0.09999406]
[1743647507107,0.7818,1821.0,1820.4,5.178889]
[1743647507311,20.51349594,1820.9,1820.4,5.178889]
[1743647507475,4.39379,1820.8,1820.4,5.178889]
[1743647507971,24.90715594,1820.9,1820.4,5.178889]
[1743647508175,20.51349594,1820.9,1820.4,9.573329]
[1743647508489,16.12000594,1820.9,1820.5,4.39434]
[1743647509004,20.51352594,1820.9,1820.5,4.39434]
[1743647509221,4.39372,1820.8,1820.4,5.178699]
[1743647509512,16.12000594,1820.9,1820.6,4.39403]
[1743647510307,16.12000594,1820.9,1820.7,4.39389]
[1743647511418,6.02000594,1820.9,1820.6,4.39403]
[1743647511577,6.02000594,1820.9,1820.6,8.78804]
[1743647511777,6.02000594,1820.9,1820.8,4.39367]
[1743647512802,6.02000594,1821.3,1821.0,4.39304]
[1743647512981,6.02000594,1821.3,1821.2,5.1681]
[1743647513310,6.02000594,1821.3,1821.0,5.16858]
[1743647513881,6.02000594,1821.3,1820.9,4.3932]
[1743647515119,6.77480594,1821.3,1820.9,4.3932]
[1743647515821,6.77480594,1821.3,1820.9,8.78642]
[1743647515985,6.77480594,1821.3,1820.9,8.78646]
[1743647516612,6.77480594,1821.3,1820.9,4.3932]
[1743647517391,6.77480594,1821.3,1820.9,8.78653]
[1743647517590,6.77480594,1821.3,1821.0,4.39313]
[1743647517918,6.77480594,1821.3,1821.0,8.78611]
[1743647518123,6.02000594,1821.3,1821.1,4.39285]
[1743647518649,6.02000594,1821.3,1821.1,5.03929727]
[1743647518794,6.02000594,1821.3,1821.2,5.1785]
[1743647519957,6.02000594,1821.3,1821.2,0.7858]
[1743647520090,6.02000594,1821.3,1821.0,4.39317]
[1743647520291,4.39278,1821.2,1820.7,9.57333]
[1743647520490,6.80090594,1821.1,1820.7,9.57336]
[1743647520796,6.80090594,1821.1,1820.8,4.3936]
[1743647521536,11.19397594,1821.1,1820.5,9.54256]
[1743647521743,5.18877,1820.8,1820.4,4.398039]
[1743647521891,6.02000594,1820.7,1820.4,4.398039]
[1743647522087,6.02000594,1820.7,1820.4,4.397879]
[1743647522391,6.02000594,1820.7,1820.5,4.39432]
[1743647523142,6.02000594,1820.7,1820.6,4.39415]
[1743647523433,6.02000594,1820.7,1820.6,5.18405]
[1743647525494,6.02000594,1820.7,1820.6,4.39415]
[1743647525896,0.7592,1820.6,1820.4,0.003459]
[1743647526096,1.11731359,1820.6,1820.4,4.397929]
[1743647526298,6.02000594,1820.7,1820.5,4.39435]
[1743647527237,6.02000594,1820.7,1820.5,8.78862]
[1743647527409,6.02000594,1820.7,1820.6,4.39415]
[1743647529207,6.02000594,1820.7,1820.5,4.39427]
[1743647531152,6.02000594,1820.7,1820.4,5.149189]
[1743647531369,0.60200059,1820.6,1820.4,0.003459]
[1743647531650,4.99616059,1820.6,1820.4,0.003459]
[1743647532146,0.60200059,1820.6,1820.4,0.003459]
[1743647533135,4.99617059,1820.6,1820.4,0.003459]
[1743647534643,0.60200059,1820.6,1820.4,0.003459]
[1743647535307,11.16629594,1820.5,1820.4,0.003459]
[1743647536210,21.26629594,1820.5,1820.4,0.003459]
[1743647538343,6.77190594,1820.5,1820.4,0.003459]
[1743647538636,6.02000594,1820.5,1820.4,0.003459]
[1743647538838,6.02000594,1820.5,1820.4,4.398089]
[1743647540846,6.02000594,1820.5,1820.4,0.003459]
[1743647544149,21.30629594,1820.5,1820.4,0.003459]
[1743647544455,24.30629594,1820.5,1820.4,0.003459]
[1743647545151,5.18702,1820.2,1820.1,0.1]
[1743647545360,21.30356694,1820.2,1820.1,0.1]
[1743647545557,24.23033488,1820.2,1820.1,0.1]
[1743647548055,27.23033488,1820.2,1820.1,0.1]
[1743647549962,31.30019596,1820.2,1820.1,0.1]
[1743647550271,27.23033488,1820.2,1820.1,1e-05]
[1743647551257,4.39753,1819.2,1819.1,0.1]
[1743647551450,16.11654694,1819.2,1819.1,0.1]
[1743647551948,16.11654694,1819.2,1819.1,5.30007]
[1743647552827,6.01654694,1819.2,1819.1,5.30007]
[1743647555073,6.01654694,1819.6,1819.5,5.19911]
[1743647555260,6.01654694,1819.6,1819.5,10.62911]
[1743647555564,6.01654694,1819.6,1819.5,10.68406331]
[1743647555864,10.1,1819.9,1819.8,5.19838]
[1743647556227,6.01654694,1820.2,1819.9,4.39577]
[1743647556958,6.01654694,1820.2,1820.0,4.39557]
[1743647557159,6.01654694,1820.2,1820.1,4.39536]
[1743647557360,6.01654694,1820.2,1820.1,0.7827]
[1743647557665,7.62820163,1820.2,1819.9,6.2376]
[1743647558254,6.01654694,1820.2,1819.9,6.2376]
[1743647558428,6.01654694,1820.2,1820.1,4.39536]
[1743647558624,6.01654694,1820.2,1820.1,5.20296]
[1743647558839,6.01654694,1820.2,1820.1,5.32598798]
[1743647561084,6.01654694,1820.2,1820.1,5.20296]
[1743647566579,6.01654694,1820.2,1820.0,4.39546]
[1743647566752,6.01654694,1820.2,1819.9,4.39584]
[1743647567092,6.01654694,1820.2,1819.8,9.82407]
[1743647567282,10.41173694,1820.2,1819.8,9.82407]
[1743647567665,6.01654694,1820.2,1819.8,9.82392]
[1743647567862,6.01654694,1820.2,1819.9,4.39582]
[1743647567863,8.58734463,1820.2,1819.9,4.39582]
[1743647568084,6.01654694,1820.2,1820.1,4.39536]
[1743647568892,6.01654694,1820.2,1819.9,5.16954]
[1743647569190,0.8036,1820.1,1819.8,4.39606]
[1743647569359,6.01654694,1820.0,1819.7,10.63105]
[1743647569555,6.01654694,1820.0,1819.7,15.02727]
[1743647569975,7.13809863,1820.0,1819.7,10.63105]
[1743647571164,6.01654694,1820.0,1819.8,4.39593]
[1743647571366,6.01654694,1820.0,1819.9,4.39584]
[1743647572115,6.01654694,1820.0,1819.8,4.39593]
[1743647572289,6.01654694,1820.0,1819.7,9.8243]
[1743647572491,6.61820163,1820.0,1819.8,0.12286038]
[1743647573064,6.01654694,1820.0,1819.8,4.51893038]
[1743647573277,6.01654694,1820.0,1819.9,4.39584]
[1743647573797,6.01654694,1820.0,1819.8,8.79205]
[1743647574004,6.01654694,1820.0,1819.8,4.51884038]
[1743647574692,6.84914694,1820.0,1819.8,0.12286038]
[1743647574867,0.60165469,1819.9,1819.6,8.79284]
[1743647575069,6.84914694,1820.0,1819.7,0.12341458]
[1743647575270,6.84914694,1820.0,1819.6,8.79284]
[1743647575796,6.84914694,1820.0,1819.7,0.12341458]
[1743647576004,6.84914694,1820.0,1819.6,8.79284]
[1743647576394,6.84914694,1820.0,1819.7,0.12341458]
[1743647576594,7.97360963,1820.0,1819.6,8.79284]
[1743647576789,7.97360963,1820.0,1819.7,0.12341458]
[1743647576994,7.97360963,1820.0,1819.6,4.39638]
[1743647577203,7.97360963,1820.0,1819.7,0.12353569]
[1743647577501,7.97360963,1820.0,1819.6,8.79285]
[1743647577701,7.97360963,1820.0,1819.7,4.39625]
[1743647577907,7.14100963,1820.0,1819.8,4.39607]
[1743647578103,6.01654694,1820.0,1819.8,4.39607]
[1743647578295,6.01654694,1820.0,1819.9,0.12291174]
[1743647578692,6.01654694,1820.0,1819.8,4.39603]
[1743647578898,6.01654694,1820.0,1819.9,0.12303285]
[1743647579824,6.01654694,1820.0,1819.9,4.51887285]
[1743647580023,6.01654694,1820.0,1819.9,0.12303285]
[1743647581032,6.01654694,1820.0,1819.9,4.51887285]
[1743647581178,6.01654694,1820.0,1819.9,5.29037285]
[1743647581384,6.01654694,1820.0,1819.9,5.16734]
[1743647581908,6.01654694,1820.0,1819.9,5.58435692]
[1743647583082,6.01654694,1820.0,1819.9,8.58435692]
[1743647585944,10.1,1820.3,1820.0,4.39536]
[1743647586784,10.1,1820.3,1820.0,4.3956]
[1743647586980,10.1,1820.3,1819.9,4.3958]
[1743647586981,10.1,1820.3,1820.1,4.39513]
[1743647587830,10.1,1820.3,1819.9,4.80879344]
[1743647588129,10.1,1820.3,1820.0,4.39557]
[1743647588291,10.1,1820.3,1820.0,8.79095]
[1743647588490,10.1,1820.3,1820.0,4.39538]
[1743647588914,11.18896,1820.3,1820.0,4.39538]
[1743647589441,6.01654694,1820.2,1819.8,4.39595]
[1743647589590,16.89994694,1820.1,1819.7,4.39616]
[1743647589790,16.11654694,1820.0,1819.7,4.39616]
[1743647590014,16.11654694,1820.0,1819.5,8.79324]
[1743647590219,22.64170363,1820.0,1819.5,8.79324]
[1743647590493,22.64170363,1820.0,1819.4,6.63951582]
[1743647590494,18.24608363,1820.0,1819.7,4.39616]
[1743647590713,18.24608363,1820.0,1819.8,4.39603]
[1743647591035,18.24608363,1820.0,1819.7,4.39616]
[1743647591730,18.24608363,1820.0,1819.8,4.39606]
[1743647592037,16.11654694,1820.0,1819.8,4.39606]
[1743647592388,6.01654694,1820.0,1819.8,4.39587]
[1743647592716,6.01654694,1820.0,1819.9,4.39584]
[1743647595594,6.01654694,1820.0,1819.9,4.79872557]
[1743647595926,7.40640163,1820.0,1819.8,9.82387]
[1743647596224,6.61820163,1820.0,1819.8,9.82387]
[1743647596394,6.01654694,1820.0,1819.9,4.39584]
[1743647596801,6.01654694,1820.0,1819.9,5.20514]
[1743647599521,6.01654694,1820.0,1819.9,5.62083848]
[1743647601141,6.01654694,1820.0,1819.9,6.26735575]
[1743647601321,6.01654694,1820.0,1819.9,5.62083848]
[1743647603734,6.01654694,1820.0,1819.9,4.81153848]
[1743647605513,6.01654694,1820.0,1819.8,14.21875]
[1743647605913,6.01654694,1820.0,1819.9,4.39584]
[1743647607246,6.01654694,1820.0,1819.8,9.82287]
[1743647607640,6.01654694,1820.0,1819.9,4.39584]
[1743647608046,6.01654694,1820.0,1819.9,5.04235727]
[1743647608213,6.01654694,1820.0,1819.9,5.23018196]
[1743647608535,6.01654694,1820.0,1819.9,8.17524]
[1743647609917,6.01654694,1820.0,1819.9,8.5804795]
[1743647617632,6.01654694,1820.7,1820.6,4.39415]
[1743647617832,6.01654694,1820.7,1820.6,9.82015]
[1743647618033,6.01654694,1820.7,1820.6,12.87506983]
[1743647618248,6.01654694,1820.7,1820.6,12.82015]
[1743647618956,6.01654694,1820.7,1820.6,13.61735]
[1743647619128,16.11654694,1821.0,1820.9,4.39343]
[1743647619331,16.11654694,1821.0,1820.9,5.60685268]
[1743647619728,6.01654694,1821.0,1820.9,5.60685268]
[1743647620536,6.01654694,1821.0,1820.9,8.60685268]
[1743647620741,6.01654694,1821.4,1821.3,4.39246]
[1743647623450,6.01654694,1821.4,1820.9,3.41622268]
[1743647623451,6.84454694,1821.4,1821.0,4.39306]
[1743647623651,0.828,1821.3,1821.0,4.39306]
[1743647623853,0.828,1821.3,1821.0,8.78612]
[1743647624058,1.51245469,1821.3,1821.0,8.78612]
[1743647624257,1.51245469,1821.3,1821.1,4.39281]
[1743647624468,1.51245469,1821.3,1821.0,4.39306]
[1743647625041,5.90494469,1821.3,1820.8,9.81851]
[1743647625346,0.828,1821.1,1820.8,9.81851]
[1743647625978,0.828,1821.1,1820.8,14.21205]
[1743647626184,2.52245469,1821.1,1820.9,4.3934]
[1743647626379,2.52245469,1821.1,1820.8,9.81851]
[1743647627773,2.52245469,1821.1,1820.8,14.21206]
[1743647627938,2.52245469,1821.1,1820.9,4.3933]
[1743647628133,0.828,1821.1,1820.9,4.3933]
[1743647628573,0.828,1821.1,1820.9,8.78657]
[1743647628871,0.828,1821.1,1820.9,4.39327]
[1743647629070,6.01654694,1821.0,1820.9,4.39327]
[1743647631771,6.01654694,1821.0,1820.8,9.81866]
[1743647631974,0.7999,1820.8,1820.4,4.39449]
[1743647632274,6.01654694,1820.7,1820.4,4.39449]
[1743647632481,6.01654694,1820.7,1820.5,4.39429]
[1743647632975,6.01654694,1820.7,1820.6,4.39415]
[1743647633676,6.01654694,1820.7,1820.5,4.39429]
[1743647634975,6.01654694,1820.7,1820.5,8.78858]
[1743647635476,6.01654694,1820.7,1820.6,4.39415]
[1743647641892,6.01654694,1820.7,1820.6,7.4490711]
[1743647642060,10.1,1821.1,1821.0,4.39319]
[1743647642260,6.01654694,1821.2,1821.1,4.39294]